fUST/lending_fUST_20240409
["ID","MTS","AMOUNT","RATE_DAILY","PERIOD"]
[321907760,1712608238680,-353.86074834,0.00037098,4]
[321907762,1712608238689,-635.67928553,0.00037098,4]
[321907764,1712608238698,-295.78468449,0.00037098,4]
[321907766,1712608238708,-379.20858322,0.00037098,4]
[321907768,1712608238717,-400.0,0.00037099,2]
[321907770,1712608238727,-25704.10069219,0.00037099,4]
[321907772,1712608238736,-3795.39821928,0.00037101,120]
[321907774,1712608238745,-154.95976064,0.00037652,4]
[321907776,1712608238755,-1247.92804269,0.00037698,4]
[321907778,1712608238764,-831.34295781,0.00038841,4]
[321907780,1712608238773,-154.9690062,0.00038843,4]
[321907782,1712608238782,-245.069294,0.00038933,2]
[321907784,1712608238791,-235.70221116,0.00039185,9]
[321907786,1712608238800,-235.7022111,0.00039224,9]
[321907787,1712608238809,-235.7022111,0.00039263,9]
[321907788,1712608238819,-7620.66836701,0.00039285,4]
[321907789,1712608238829,-235.7022111,0.00039302,9]
[321907790,1712608238838,-235.7022111,0.00039341,9]
[321907791,1712608238847,-4760.69228793,0.00039538,2]
[321907792,1712608238857,-2000.0,0.00039541,2]
[321907794,1712608238866,-229.70103569,0.00039556,15]
[321907796,1712608238875,-399.39690076,0.00039556,4]
[321907797,1712608238884,-3027.66,0.00039557,2]
[321907799,1712608238893,-3027.66,0.00039557,2]
[321907801,1712608238903,-3027.66,0.00039557,2]
[321907803,1712608238913,-3027.66,0.00039557,2]
[321907805,1712608238922,-3027.66,0.00039557,2]
[321907807,1712608238931,-3027.66,0.00039557,2]
[321907809,1712608238940,-3027.66,0.00039557,2]
[321907811,1712608238949,-3027.66,0.00039557,2]
[321907813,1712608238958,-3027.66,0.00039557,2]
[321907815,1712608238967,-3027.66,0.00039557,2]
[321907817,1712608238976,-101276.4959535,0.00039558,3]
[321907818,1712608238985,-385.171449,0.00039558,2]
[321907820,1712608238994,-385.171449,0.00039558,2]
[321907822,1712608239003,-151.0,0.00039558,2]
[321907824,1712608239012,-151.0,0.00039558,2]
[321907825,1712608239023,-173018.92608649,0.00039558,60]
[321907842,1712608240465,-668.64742128,0.00037096,4]
[321907843,1712608240474,-235.7022111,0.0003938,9]
[321907844,1712608240483,-10325.69376089,0.00039558,60]
[321907845,1712608240519,-9281.45671826,0.00039558,60]
[321907846,1712608240530,-7024.86928023,0.00039558,60]
[321907851,1712608243899,-264.51967544,0.00024898,7]
[321907852,1712608243909,-11343.84872882,0.00039558,60]
[321907856,1712608243969,-44.35834062,0.00039558,60]
[321907858,1712608244106,-51186.66417875,0.00039558,60]
[321907861,1712608247185,-235.7022111,0.00039419,9]
[321907862,1712608247194,-573.32159612,0.00039558,60]
[321907863,1712608247205,-1695.2,0.00039558,60]
[321907877,1712608685001,660.0,0.00026192,60]
[321907879,1712608717174,1010.0,0.00026192,60]
[321907880,1712608740068,1010.0,0.00026192,60]
[321907895,1712609247096,-211.10073738,0.00023818,2]
[321907896,1712609247118,-138.6368482,0.00023818,2]
[321907900,1712609254096,-154.84515485,0.00023817,2]
[321907901,1712609345127,-558.32933043,0.00022811,2]
[321907902,1712609345152,-300.0,0.00022812,2]
[321907903,1712609345174,-300.0,0.00022812,2]
[321907904,1712609345194,-3734.82468717,0.00022812,2]
[321907905,1712609345214,-581.75582729,0.00022812,2]
[321907906,1712609345233,-935.87904205,0.00022813,2]
[321907907,1712609345254,-19131.19494376,0.00022813,2]
[321907908,1712609345273,-282.23953123,0.00022813,2]
[321907909,1712609345293,-2579.2553814,0.00022814,2]
[321907910,1712609345313,-601.41035313,0.00022814,2]
[321907911,1712609345334,-781.66926533,0.00022815,2]
[321907912,1712609345354,-283.26138763,0.00022815,2]
[321907913,1712609345373,-211.34462556,0.00022815,2]
[321907914,1712609345394,-220.14831517,0.00022815,2]
[321907915,1712609345415,-688.99595907,0.00022816,2]
[321907916,1712609345437,-154.9690062,0.00022816,2]
[321907917,1712609345458,-271.8195425,0.00022816,2]
[321907918,1712609345479,-2092.79838707,0.00022817,2]
[321907919,1712609345499,-5564.97168216,0.00022817,2]
[321907920,1712609345519,-240.61118676,0.00022817,2]
[321907921,1712609345540,-154.9690062,0.00022817,2]
[321907922,1712609345561,-1485.26994661,0.00022817,2]
[321907923,1712609345580,-157.22434872,0.00022818,2]
[321907924,1712609345600,-154.9690062,0.00022818,2]
[321907925,1712609345619,-1963.44133706,0.00022818,2]
[321907926,1712609345643,-263.37349984,0.00022818,2]
[321907927,1712609345662,-402.18417205,0.00022822,2]
[321907928,1712609345755,-24900.0,0.00022823,2]
[321907929,1712609345776,-176.77665835,0.00023723,2]
[321907930,1712609345796,-524.59337771,0.00023954,2]
[321907931,1712609345816,-242.6744587,0.00023955,2]
[321907932,1712609345836,-346.257341,0.00023956,2]
[321907933,1712609345857,-250.0,0.0002446,2]
[321907934,1712609345879,-420.0,0.00025093,2]
[321907935,1712609345900,-2699.90928671,0.00025469,2]
[321907936,1712609350364,-473.12701109,0.00022811,2]
[321907937,1712609350384,-1930.22588294,0.00022811,2]
[321907938,1712609350403,-545.90247133,0.00022811,2]
[321907939,1712609350422,-3319.09071329,0.00025469,2]
[321907940,1712609350443,-176.77665833,0.00025984,2]
[321907941,1712609350463,-165.32153956,0.00027281,2]
[321907942,1712609350483,-166.048833,0.00027397,2]
[321907943,1712609350502,-158.175865,0.00027397,2]
[321907944,1712609350521,-587.0,0.00027603,2]
[321907945,1712609350541,-176.77665833,0.00028246,4]
[321907946,1712609350564,-165.32153953,0.00030341,2]
[321907947,1712609350583,-823.0,0.00030363,2]
[321907948,1712609350606,-176.77665833,0.00030507,5]
[321907949,1712609350629,-150.0,0.000315,2]
[321907950,1712609350653,-176.77665833,0.00032768,6]
[321907951,1712609350674,-1152.0,0.00033399,2]
[321907952,1712609350696,-165.32153953,0.00033401,2]
[321907953,1712609355150,-668.64742128,0.00035028,4]
[321907954,1712609355171,-176.77665833,0.00035029,7]
[321907955,1712609355192,-158.175865,0.00035225,2]
[321907956,1712609355212,-150.96980604,0.00035702,2]
[321907957,1712609355232,-346.257341,0.00035934,2]
[321907958,1712609355617,161.539195,0.00027397,2]
[321907959,1712609359151,-301.93961208,0.00036302,4]
[321907960,1712609359171,-165.32153953,0.00036461,2]
[321907961,1712609359193,-1613.0,0.00036739,2]
[321907962,1712609359213,-603.87922416,0.00036912,7]
[321907963,1712609359232,-421.70859,0.00036986,120]
[321907964,1712609359252,-176.77665833,0.00037291,8]
[321907965,1712609359272,-762.00103253,0.00037458,2]
[321907966,1712609359293,-154.95976064,0.00037638,4]
[321907967,1712609359315,-1247.92804269,0.00037638,4]
[321907968,1712609359337,-1207.75844831,0.00037846,30]
[321907969,1712609403648,508.00068836,0.00030668,2]
[321907970,1712609403949,508.00068836,0.00035668,2]
[321907971,1712609418659,3497.517008,0.00033401,30]
[321907972,1712609418680,329.23473766,0.00033401,30]
[321907973,1712609418700,8889.19044285,0.00033401,30]
[321907974,1712609418722,10555.50617852,0.00033401,30]
[321907975,1712609418744,10564.37321299,0.00033401,30]
[321907986,1712609432630,-925.71434041,0.00038759,4]
[321907987,1712609432639,-808.03694279,0.00038759,4]
[321907988,1712609432649,-1257.41905842,0.00038759,4]
[321907990,1712609432659,-668.64742128,0.00038759,4]
[321907992,1712609432669,-380.58151889,0.0003876,4]
[321907993,1712609432678,-635.67928553,0.0003876,4]
[321907995,1712609432687,-365.20859837,0.0003876,4]
[321907997,1712609432696,-379.20858322,0.0003876,4]
[321907999,1712609432705,-353.86074834,0.0003876,4]
[321908000,1712609432714,-295.78468449,0.0003876,4]
[321908001,1712609432724,-323.27798604,0.00038761,4]
[321908002,1712609432736,-1050.22741983,0.00038761,4]
[321908003,1712609432746,-283.95631073,0.00038761,4]
[321908004,1712609432756,-781.62971038,0.00038761,4]
[321908005,1712609432765,-353.46098728,0.00038762,4]
[321908006,1712609432774,-2811.82124942,0.00038762,4]
[321908007,1712609432784,-154.9690062,0.00038827,4]
[321908008,1712609432793,-831.34295781,0.00038827,4]
[321908009,1712609432802,-25704.10069219,0.00039222,4]
[321908010,1712609432811,-172.36464516,0.00039222,15]
[321908011,1712609432820,-400.0,0.00039222,3]
[321908012,1712609432830,-7620.66836701,0.00039223,4]
[321908013,1712609432839,-2000.0,0.00039456,2]
[321908014,1712609432848,-1962.4810933,0.0003949,2]
[321908015,1712609432857,-286.0,0.00039494,2]
[321908017,1712609432867,-165.32153953,0.00039521,2]
[321908019,1712609432876,-162.56,0.00039528,35]
[321908021,1712609432885,-160.77,0.00039528,35]
[321908023,1712609432894,-476.06922882,0.00039535,2]
[321908025,1712609432903,-150.5,0.00039538,35]
[321908027,1712609432912,-150.5,0.00039538,35]
[321908029,1712609432921,-476.06922879,0.0003954,2]
[321908031,1712609432930,-476.06922879,0.00039545,2]
[321908033,1712609432939,-150.5,0.00039548,35]
[321908035,1712609432949,-150.5,0.00039548,35]
[321908037,1712609432958,-476.06922879,0.00039551,2]
[321908039,1712609432967,-176.77665833,0.00039552,9]
[321908041,1712609432975,-1104.35562516,0.00039554,4]
[321908043,1712609432985,-1575.9243904,0.00039554,4]
[321908045,1712609432994,-2882.24339496,0.00039554,4]
[321908047,1712609433003,-1290.31533266,0.00039554,4]
[321908049,1712609433012,-195.31864127,0.00039554,4]
[321908051,1712609433021,-644.01955769,0.00039554,2]
[321908053,1712609433031,-304.46951332,0.00039554,4]
[321908054,1712609433040,-265.22881864,0.00039554,4]
[321908056,1712609433049,-155.0309938,0.00039554,4]
[321908058,1712609433058,-2128.66873494,0.00039554,4]
[321908060,1712609433067,-269.00383496,0.00039554,4]
[321908062,1712609433076,-529.00122909,0.00039554,4]
[321908064,1712609433085,-283.62862988,0.00039554,4]
[321908065,1712609433095,-733.0364972,0.00039556,4]
[321908081,1712609438636,-211.24192726,0.00038758,4]
[321908082,1712609438655,-68464.18948039,0.00039556,4]
[321908083,1712609438676,-476.06922879,0.00039556,2]
[321908084,1712609438699,-157.60455095,0.00039556,4]
[321908085,1712609438711,-509.30604436,0.00039556,7]
[321908086,1712609438721,-1306.43290206,0.00039556,4]
[321908087,1712609438731,-181.29241369,0.00039556,4]
[321908088,1712609438741,-155.99996299,0.00039556,4]
[321908089,1712609438751,-200.0,0.00039556,4]
[321908090,1712609438764,-157.08950999,0.00039556,4]
[321908091,1712609438773,-203.66164366,0.00039556,4]
[321908092,1712609438783,-399.39690076,0.00039556,4]
[321908093,1712609438793,-3027.66,0.00039557,2]
[321908094,1712609438802,-3027.66,0.00039557,2]
[321908095,1712609438811,-3027.66,0.00039557,2]
[321908096,1712609438821,-3027.66,0.00039557,2]
[321908097,1712609438831,-3027.66,0.00039557,2]
[321908098,1712609438840,-3027.66,0.00039557,2]
[321908099,1712609438850,-125757.17307608,0.00039558,3]
[321908100,1712609438860,-1039.28542308,0.00039558,4]
[321908101,1712609438869,-476.06922879,0.00039561,2]
[321908102,1712609438878,-476.06922879,0.00039566,2]
[321908103,1712609438887,-476.06922879,0.00039572,2]
[321908104,1712609438896,-476.06922879,0.00039577,2]
[321908105,1712609438905,-476.06922879,0.00039582,2]
[321908106,1712609438915,-1456.04072087,0.00039594,4]
[321908107,1712609438924,-150.5,0.00039608,35]
[321908108,1712609438933,-150.5,0.00039618,35]
[321908109,1712609438942,-173.64,0.00039618,35]
[321908110,1712609438951,-3795.39821928,0.00039619,120]
[321908111,1712609438960,-280.478478,0.00039621,2]
[321908112,1712609438969,-150.5,0.00039628,35]
[321908113,1712609438978,-150.5,0.00039628,35]
[321908114,1712609438987,-163.39056538,0.00039633,4]
[321908115,1712609438996,-432.07480795,0.00039633,4]
[321908116,1712609439008,-187.78238727,0.00039633,4]
[321908117,1712609439018,-358.19825999,0.00039633,4]
[321908118,1712609439027,-712.88039294,0.00039633,4]
[321908119,1712609439037,-563.77106886,0.00039633,4]
[321908120,1712609439047,-155.13173026,0.00039633,2]
[321908121,1712609439056,-467.64782987,0.00039633,4]
[321908122,1712609439066,-215.58014229,0.00039633,4]
[321908123,1712609439075,-333.08757566,0.00039633,4]
[321908124,1712609439085,-512.82242333,0.00039633,4]
[321908125,1712609439094,-3943.50120972,0.00039633,4]
[321908126,1712609439104,-2474.61591731,0.00039633,4]
[321908127,1712609439113,-171.06509755,0.00039633,2]
[321908128,1712609439122,-282.45182276,0.00039634,4]
[321908129,1712609439131,-689.53227006,0.00039634,4]
[321908130,1712609439140,-1051.63852118,0.00039634,4]
[321908131,1712609439150,-171.52639332,0.00039634,4]
[321908132,1712609439159,-597.36590786,0.00039634,4]
[321908133,1712609439169,-464.50545485,0.00039634,4]
[321908134,1712609439178,-290.32020054,0.00039634,2]
[321908135,1712609439187,-267.48919917,0.00039634,4]
[321908136,1712609439197,-741.70599375,0.00039634,4]
[321908137,1712609439206,-151.0,0.00039635,2]
[321908138,1712609439215,-131892.53919115,0.00039635,60]
[321908166,1712609443949,-1628.79133983,0.00039634,2]
[321908167,1712609443960,-71.28866017,0.00039634,2]
[321908168,1712609443970,-1700.08,0.00039634,2]
[321908169,1712609443979,-32.95476283,0.00039634,2]
[321908170,1712609443991,-1667.12523717,0.00039634,2]
[321908171,1712609444004,-926.42441643,0.00039634,2]
[321908176,1712609446769,-342.22250467,0.00039633,4]
[321908177,1712609476876,-397.76918839,0.0004,120]
[321908178,1712609476898,-773.57431578,0.0004,120]
[321908179,1712609476937,-421.70859,0.0004,120]
[321908180,1712609476986,-9087.89581166,0.0004,120]
[321908181,1712609504282,1593.05209417,0.00039633,120]
[321908188,1712609631644,8053.53662468,0.0002,2]
[321908189,1712609654036,9249.95210463,0.00021,5]
[321908190,1712609656418,5735.99265954,0.0002,2]
[321908194,1712609672087,2293.13318682,0.000205,5]
[321908195,1712609674537,5434.7777336,0.00021,2]
[321908196,1712609674587,2533.27202912,0.00021,2]
[321908197,1712609675533,311.1981965,0.0002104,15]
[321908199,1712609837371,-377.09187181,0.0002104,2]
[321908200,1712609837513,-7.69575249,0.0002104,2]
[321908201,1712609839475,-210.0,0.0002104,2]
[321908202,1712609839582,-3.65463678,0.0002104,2]
[321908203,1712609839748,156.08588259,0.0002104,2]
[321908204,1712609842001,50.25948063,0.0002104,2]
[321908205,1712609842240,-6317.02296474,0.0002104,2]
[321908206,1712609842415,-128.91883602,0.0002104,2]
[321908207,1712609845393,-154.9690062,0.0002104,2]
[321908208,1712609845438,-151.80693158,0.0002104,2]
[321908209,1712609845739,-6.26073342,0.0002104,2]
[321908210,1712609851676,-200.0,0.0002104,2]
[321908211,1712609851707,-150.11705139,0.0002104,2]
[321908212,1712609851785,-7.14524595,0.0002104,2]
[321908213,1712609851811,-254.51132314,0.0002104,2]
[321908214,1712609852985,2407.29163068,0.0002104,5]
[321908215,1712609859292,-154.9690062,0.0002104,2]
[321908216,1712609859420,-373.99249169,0.0002104,2]
[321908217,1712609859460,-10.79513261,0.0002104,2]
[321908218,1712609860860,154.9690062,0.0002104,2]
[321908219,1712609868915,827.07332417,0.0002104,5]
[321908220,1712609871868,-154.9690062,0.0002104,2]
[321908221,1712609873681,254.51132314,0.0002104,2]
[321908222,1712609877205,154.9690062,0.0002104,2]
[321908223,1712609878298,314.1997281,0.0002104,2]
[321908224,1712609879068,384.7876243,0.0002104,2]
[321908225,1712609888972,245.04706382,0.0002104,2]
[321908226,1712609889047,154.9690062,0.0002104,2]
[321908227,1712609891588,283.55248336,0.0002104,2]
[321908228,1712609894098,314.1997281,0.0002104,2]
[321908229,1712609899086,384.7876243,0.0002104,2]
[321908230,1712609899222,154.9690062,0.0002104,2]
[321908231,1712609901650,151.48485454,0.00020998,2]
[321908232,1712609911061,154.9690062,0.00020998,2]
[321908233,1712609917220,154.9690062,0.00020998,2]
[321908234,1712609919081,231.85901297,0.00020998,2]
[321908235,1712609920179,314.1997281,0.00020998,2]
[321908237,1712609931058,154.9690062,0.00020998,2]
[321908238,1712609939210,154.9690062,0.00020998,2]
[321908239,1712609940104,314.1997281,0.00020998,2]
[321908240,1712609949176,177.73328996,0.00020998,2]
[321908241,1712609954178,314.1997281,0.00020998,2]
[321908242,1712609959303,158.4727978,0.00020998,2]
[321908243,1712609972096,314.1997281,0.00020998,2]
[321908246,1712609994180,314.1997281,0.00020998,2]
[321908247,1712610016111,444.1131894,0.00020998,2]
[321908248,1712610140172,151.0,0.000209,2]
[321908251,1712610255472,299.67972178,0.000209,2]
[321908253,1712610353151,-601.41035313,0.00024062,2]
[321908254,1712610353173,-154.9690062,0.00024063,2]
[321908255,1712610353193,-2615.47741153,0.00024063,2]
[321908256,1712610353213,-221.96702002,0.00024064,2]
[321908257,1712610355030,2424.58627478,0.000209,5]
[321908264,1712610426096,-189.112387,0.00023461,2]
[321908265,1712610430102,-581.75582729,0.0002346,2]
[321908266,1712610430124,-619.24368729,0.0002346,2]
[321908267,1712610436128,-216.76809251,0.00023459,2]
[321908268,1712610442145,-66.49329512,0.00023459,2]
[321908269,1712610442164,-792.50898671,0.00023459,2]
[321908270,1712610450101,-282.23953123,0.00023457,2]
[321908271,1712610450122,-545.90247133,0.00023458,2]
[321908272,1712610450145,-2092.79838707,0.00023458,2]
[321908273,1712610450165,-562.64730962,0.00023458,2]
[321908274,1712610450185,-514.63851214,0.00023459,2]
[321908275,1712610450205,-207.18381603,0.00023459,2]
[321908276,1712610450227,-467.65886063,0.0002346,2]
[321908277,1712610450247,-1131.68428374,0.0002346,2]
[321908278,1712610450267,-263.37349984,0.0002346,2]
[321908279,1712610450288,-5592.49637367,0.00023461,2]
[321908280,1712610450308,-524.59337771,0.00023461,2]
[321908281,1712610450330,-935.87904205,0.00023462,2]
[321908282,1712610450349,-688.99595907,0.00023462,2]
[321908283,1712610450370,-154.9690062,0.00023462,2]
[321908284,1712610450391,-25676.95846573,0.00023462,2]
[321908285,1712610546110,-211.34462556,0.00022455,2]
[321908286,1712610546136,-850.319852,0.00022456,2]
[321908287,1712610546161,-215.70131407,0.0002336,2]
[321908288,1712610546184,-924.63411097,0.0002336,2]
[321908289,1712610546208,-300.0,0.0002336,2]
[321908290,1712610546231,-300.0,0.0002336,2]
[321908291,1712610546254,-868.32225078,0.00023361,2]
[321908292,1712610546278,-271.8195425,0.00023361,2]
[321908293,1712610546302,-781.66926533,0.00023361,2]
[321908294,1712610546325,-886.58989039,0.00023361,2]
[321908295,1712610546349,-274.63736392,0.00023362,2]
[321908296,1712610546369,-469.89408815,0.00023452,2]
[321908297,1712610546391,-192.96186117,0.00023453,2]
[321908298,1712610546412,-220.14831517,0.00023453,2]
[321908299,1712610546434,-154.9690062,0.00023453,2]
[321908300,1712610546456,-19131.19494376,0.00023453,2]
[321908301,1712610546478,-1534.47906319,0.00023462,2]
[321908302,1712610555102,-20375.12466047,0.00023462,2]
[321908303,1712610555124,-250.0,0.00023466,2]
[321908304,1712610555145,-5900.78359447,0.00024061,2]
[321908305,1712610555167,-906.93634058,0.00024064,2]
[321908306,1712610555189,-220.17723349,0.00025,2]
[321908307,1712610555211,-420.0,0.00025349,2]
[321908308,1712610555233,-274.63736392,0.00025655,2]
[321908309,1712610555254,-420.0,0.00025696,2]
[321908310,1712610555275,-299.36680377,0.00026293,2]
[321908311,1712610555299,-24900.0,0.00026294,2]
[321908312,1712610555319,-1487.9134391,0.00027141,2]
[321908313,1712610555343,-1106.9161838,0.00027236,2]
[321908314,1712610555364,-265.412892,0.00027397,2]
[321908315,1712610555386,-176.033329,0.00027467,2]
[321908316,1712610555407,-587.0,0.00027508,2]
[321908317,1712610555427,-274.63736392,0.00027948,3]
[321908318,1712610555448,-587.0,0.00028266,2]
[321908319,1712610555467,-200.0,0.00029132,2]
[321908320,1712610555490,-287.96135023,0.00029691,2]
[321908321,1712610555509,-190.0,0.0003,2]
[321908322,1712610555530,-274.63736392,0.00030241,5]
[321908323,1712610555551,-823.0,0.00031092,2]
[321908324,1712610555570,-252.65803434,0.00031704,4]
[321908325,1712610555589,-309.76769358,0.00031707,4]
[321908326,1712610555611,-274.63736392,0.00032533,6]
[321908327,1712610555631,-190.0,0.00033,2]
[321908328,1712610555652,-265.412892,0.00033165,2]
[321908329,1712610555673,-850.319852,0.00033683,2]
[321908330,1712610555694,-1152.0,0.00034201,2]
[321908331,1712610555714,-3514.07713642,0.00034824,4]
[321908332,1712610555734,-808.03694279,0.00034825,4]
[321908333,1712610555755,-274.63736392,0.00034826,7]
[321908334,1712610564083,-668.64742128,0.00035666,4]
[321908335,1712610564104,-500.0,0.00035667,2]
[321908336,1712610564125,-26863.94908843,0.00035668,60]
[321908337,1712610572112,-255.0,0.00035668,2]
[321908338,1712610572133,-8392.14194177,0.00035668,60]
[321908339,1712610572153,-859.00228183,0.0003567,4]
[321908340,1712610572175,-500.0,0.00035722,2]
[321908341,1712610572195,-156.73208261,0.00035777,2]
[321908342,1712610572215,-84.8567877,0.00035941,4]
[321908344,1712610609310,948.20445465,0.00033568,2]
[321908345,1712610620962,1240.42355071,0.00032101,4]
[321908377,1712610632145,-386.07541801,0.00035666,4]
[321908408,1712610632436,-435.31049452,0.00035666,4]
[321908410,1712610632447,-420.92479318,0.00035666,4]
[321908412,1712610632458,-380.58151889,0.00035667,4]
[321908414,1712610632467,-1012.84086783,0.00035668,4]
[321908417,1712610632476,-295.82353828,0.00035668,4]
[321908419,1712610632486,-9707.54210882,0.00035668,60]
[321908421,1712610632495,-196.77036543,0.00035869,2]
[321908422,1712610632505,-1516.76549872,0.00035872,30]
[321908478,1712610637206,886.01682193,0.00032101,4]
[321908482,1712610637843,-985.47,0.00035872,30]
[321908487,1712610638033,-7133.20360128,0.00035872,30]
[321908488,1712610638043,-278.36597163,0.00035938,4]
[321908489,1712610638052,-379.20858322,0.00035939,4]
[321908490,1712610638061,-755.95607818,0.0003594,4]
[321908491,1712610638073,-353.86074834,0.0003594,4]
[321908492,1712610638093,-925.71434041,0.0003594,4]
[321908495,1712610638108,-696.77292268,0.00035941,4]
[321908497,1712610638124,-400.0,0.00035941,2]
[321908499,1712610638139,-2080.0639671,0.00036,14]
[321908500,1712610638157,-255.58981965,0.0003624,2]
[321908501,1712610638170,-1451.903632,0.00036986,120]
[321908502,1712610638186,-3968.40317953,0.00037,2]
[321908503,1712610638203,-3839.20301189,0.00037044,4]
[321908504,1712610638219,-504.55621496,0.00037096,4]
[321908505,1712610638235,-303.48072783,0.00037096,4]
[321908506,1712610638252,-200.0,0.00037097,2]
[321908507,1712610638267,-259.25777893,0.00037118,4]
[321908508,1712610638282,-289.80982697,0.00037118,4]
[321908509,1712610638299,-274.63736392,0.00037119,8]
[321908510,1712610638316,-531.59682047,0.000385,2]
[321908511,1712610638331,-948.20445465,0.00038568,2]
[321908512,1712610638343,-255.0,0.00038668,2]
[321908513,1712610638358,-266.12790825,0.00038841,4]
[321908514,1712610638371,-265.412892,0.00038933,2]
[321908515,1712610638384,-1480.63915784,0.00038999,4]
[321908516,1712610638399,-19189.95481034,0.00038999,4]
[321908517,1712610638441,-283.0,0.00038999,4]
[321908518,1712610638457,-4750.50672401,0.00038999,4]
[321908519,1712610638471,-531.59682047,0.00039,2]
[321908520,1712610638483,-7520.86577147,0.00039,2]
[321908521,1712610638496,-158.06271097,0.00039286,3]
[321908522,1712610638509,-63935.88010091,0.00039411,4]
[321908523,1712610638522,-2000.0,0.00039412,2]
[321908524,1712610638535,-274.63736392,0.00039412,9]
[321908525,1712610638548,-18348.29402902,0.00039412,2]
[321908526,1712610638561,-2744.0,0.00039511,2]
[321908527,1712610638574,-2744.0,0.00039511,2]
[321908528,1712610638589,-2744.0,0.00039511,2]
[321908529,1712610638601,-2744.0,0.00039511,2]
[321908530,1712610638614,-2744.0,0.00039511,2]
[321908531,1712610638627,-2744.0,0.00039511,2]
[321908532,1712610638639,-2744.0,0.00039511,2]
[321908533,1712610638653,-2744.0,0.00039511,2]
[321908534,1712610638665,-2744.0,0.00039511,2]
[321908535,1712610638678,-2744.0,0.00039511,2]
[321908536,1712610638691,-127489.38670748,0.00039512,3]
[321908537,1712610638704,-120703.75883367,0.00039512,60]
[321908601,1712610641193,-3025.73,0.00039512,60]
[321908620,1712610643098,-5040.449459,0.00039512,60]
[321908621,1712610643128,-335064.66593202,0.00039512,60]
[321908622,1712610643142,-35983.5043291,0.00039512,60]
[321908624,1712610643199,-5945.80022843,0.00039512,60]
[321908654,1712610646546,-158.06271097,0.00039286,3]
[321908655,1712610646555,-25.16919652,0.00039512,60]
[321908672,1712610647254,1012.84086783,0.00033568,4]
[321908673,1712610653299,364.70816219,0.00033568,4]
[321908674,1712610657347,500.0,0.00033179,2]
[321908675,1712610657624,500.0,0.00033233,2]
[321908676,1712610658138,500.0,0.00033288,2]
[321908677,1712610658398,500.0,0.00033343,2]
[321908678,1712610658657,500.0,0.00033398,2]
[321908679,1712610658911,500.0,0.00033453,2]
[321908680,1712610659180,500.0,0.00033507,2]
[321908681,1712610659520,500.0,0.00033562,2]
[321908682,1712610660136,500.0,0.00033617,2]
[321908683,1712610660721,500.0,0.00033672,2]
[321908684,1712610661030,500.0,0.00033727,2]
[321908685,1712610661293,403.74475195,0.00033781,2]
[321908686,1712610661315,96.25524805,0.00033781,2]
[321908687,1712610661570,500.0,0.00033836,2]
[321908688,1712610661898,500.0,0.00033891,2]
[321908689,1712610667141,1037.22287258,0.00033568,4]
[321908690,1712610668699,208.308899,0.00027397,2]
[321908691,1712610668951,208.308899,0.00033165,2]
[321908693,1712610937926,-326.05013644,0.00033176,4]
[321908694,1712610937960,-211.24192726,0.00033176,4]
[321908695,1712610938105,-379.77710347,0.00033177,4]
[321908696,1712610938127,-326.05013644,0.00033177,4]
[321908697,1712610938139,-211.24192726,0.00033177,4]
[321908698,1712610938150,-379.77710347,0.00033177,4]
[321908699,1712610938168,-1165.86166566,0.00033177,4]
[321908702,1712610987555,-376.92973248,0.00033172,4]
[321908705,1712611049941,-278.36597163,0.00033169,4]
[321908706,1712611049971,-353.86074834,0.00033169,4]
[321908707,1712611050000,-547.63454468,0.00033169,4]
[321908708,1712611050030,-781.62971038,0.0003317,4]
[321908709,1712611050063,-1050.22741983,0.0003317,4]
[321908710,1712611050093,-276.31035049,0.00033171,4]
[321908711,1712611050122,-615.90556651,0.00033171,4]
[321908712,1712611124264,-300.0,0.00030136,2]
[321908713,1712611124367,-21.20274415,0.00030136,2]
[321908714,1712611179561,-170.2,0.00027397,2]
[321908717,1712611223596,-0.030228,0.00027397,2]
[321908718,1712611223635,-1256.939544,0.00030135,4]
[321908719,1712611320032,-0.47951442,0.00030135,4]
[321908720,1712611320065,-178.79725585,0.00030136,2]